fUSD/lending_fUSD_20260408
["ID","MTS","AMOUNT","RATE_DAILY","PERIOD"]
[420025915,1775623840254,-195.0,0.00011616,2]
[420025916,1775623840265,-195.0,0.00011616,2]
[420025917,1775623840275,-195.0,0.00011616,2]
[420025918,1775623840285,-250.0,0.00011616,2]
[420025919,1775623840295,-2632.34465391,0.00011616,2]
[420025920,1775623840305,-276.00185502,0.00011616,2]
[420025921,1775623840315,-600.0,0.00011616,2]
[420025922,1775623840325,-164.0,0.00011624,2]
[420025923,1775623840336,-420.0,0.00011624,2]
[420025924,1775623840346,-420.0,0.00011624,2]
[420025925,1775623840356,-1680.0,0.0001163,2]
[420025926,1775623840366,-500.0,0.00011672,2]
[420025927,1775623840376,-9434.19054767,0.00011675,2]
[420025928,1775623840386,-155.0,0.00011714,2]
[420025929,1775623840396,-160.0,0.00011728,2]
[420025930,1775623840406,-1282.889125,0.00011728,2]
[420025931,1775623840416,-2405.778251,0.00011728,2]
[420025932,1775623840425,-200.0,0.0001174,2]
[420025933,1775623840435,-1289.58892491,0.0001174,2]
[420025934,1775623840445,-741.53,0.0001174,2]
[420025935,1775623840455,-500.0,0.00011796,2]
[420025936,1775623840464,-500.7116693,0.00011796,2]
[420025937,1775623840474,-12263.8920681,0.00011806,2]
[420025938,1775623840484,-500.0,0.000119,2]
[420025939,1775623840494,-200.08326476,0.000119,2]
[420025940,1775623840504,-500.0,0.000119,2]
[420025941,1775623840514,-169.66281329,0.000119,2]
[420025942,1775623840523,-500.0,0.000119,2]
[420025943,1775623840533,-500.0,0.000119,2]
[420025944,1775623840542,-500.0,0.000119,2]
[420025945,1775623840552,-170.15582469,0.000119,2]
[420025946,1775623840562,-164.45663059,0.000119,2]
[420025947,1775623840571,-503.45185304,0.00011946,2]
[420025948,1775623840582,-835.919203,0.00011953,2]
[420025949,1775623840592,-389.18344,0.00011953,2]
[420025950,1775623840601,-23620.10508083,0.00011968,2]
[420025952,1775623840611,-284.56,0.00011999,2]
[420025954,1775623840621,-741.53,0.00012014,2]
[420025956,1775623840631,-387.33393,0.00012069,2]
[420025958,1775623840641,-1000.0,0.00012097,2]
[420025959,1775623840651,-501.73893264,0.00012098,2]
[420025960,1775623840660,-169.3852,0.000121,2]
[420025961,1775623840670,-1000.54232895,0.00012111,2]
[420025963,1775623840680,-455.42271784,0.00012111,2]
[420025965,1775623840690,-1000.0,0.00012111,2]
[420025967,1775623840700,-1000.0,0.00012111,2]
[420025969,1775623840710,-1000.0,0.00012111,2]
[420025971,1775623840721,-502.49539828,0.00012111,2]
[420025973,1775623840731,-361.44642401,0.00012154,2]
[420025975,1775623840741,-1000.0,0.00012154,2]
[420025977,1775623840750,-9434.19054767,0.00012275,2]
[420025979,1775623840760,-201.60184993,0.00012288,2]
[420025981,1775623840771,-1337.30371513,0.00012288,2]
[420025983,1775623840781,-741.53,0.00012288,2]
[420025984,1775623840791,-1749.394262,0.00012315,2]
[420025985,1775623840801,-1000.87166627,0.00012344,2]
[420025986,1775623840810,-1000.0,0.00012448,2]
[420025987,1775623840820,-501.51019132,0.00012448,2]
[420025988,1775623840830,-1000.0,0.00012448,2]
[420025989,1775623840840,-1000.0,0.00012448,2]
[420025990,1775623840850,-1000.0,0.00012448,2]
[420025991,1775623840860,-741.54785208,0.00012562,2]
[420025992,1775623840870,-284.56,0.00012631,2]
[420025993,1775623840881,-1500.0,0.00012645,2]
[420025994,1775623840891,-1500.0,0.00012659,2]
[420025995,1775623840901,-1500.0,0.00012659,2]
[420025996,1775623840910,-23620.10508083,0.00012677,2]
[420025997,1775623840920,-391.89335958,0.00012702,2]
[420025998,1775623840930,-433.0,0.00012721,2]
[420025999,1775623840940,-155.0,0.00012779,2]
[420026000,1775623840950,-587.0,0.00012779,2]
[420026001,1775623840960,-587.0,0.00012779,2]
[420026002,1775623840969,-2351.0,0.00012793,2]
[420026003,1775623840979,-150.0,0.00012798,2]
[420026004,1775623840989,-285.50676789,0.00012798,2]
[420026005,1775623840999,-571.72665154,0.00012836,2]
[420026006,1775623841010,-9434.19054767,0.00012875,2]
[420026007,1775623841020,-337.38,0.00012901,2]
[420026008,1775623841030,-12263.8920681,0.00012976,2]
[420026009,1775623841039,-209.52918559,0.00012996,2]
[420026010,1775623841049,-1500.0,0.00012996,2]
[420026011,1775623841059,-1500.0,0.00012996,2]
[420026012,1775623841069,-1500.0,0.00012996,2]
[420026013,1775623841078,-250.0,0.00013,2]
[420026014,1775623841088,-434.677986,0.00013091,2]
[420026015,1775623841099,-202.375388,0.00013091,2]
[420026016,1775623841109,-1015.28558372,0.00013193,2]
[420026017,1775623841119,-1037.33935184,0.00013207,2]
[420026018,1775623841129,-2000.0,0.00013207,2]
[420026019,1775623841138,-201.413644,0.00013218,2]
[420026020,1775623841148,-1093.56499901,0.00013242,2]
[420026021,1775623841158,-284.56,0.00013263,2]
[420026022,1775623841167,-152.45672918,0.00013383,2]
[420026023,1775623841177,-23620.10508083,0.00013386,2]
[420026024,1775623841187,-191.2757,0.000134,2]
[420026025,1775623841197,-9434.19054767,0.00013474,2]
[420026026,1775623841207,-909.685016,0.00013488,2]
[420026027,1775623841216,-2000.0,0.00013544,2]
[420026028,1775623841226,-2000.0,0.00013544,2]
[420026029,1775623841236,-1393.05427862,0.00013544,2]
[420026030,1775623841246,-171.98,0.00013573,2]
[420026031,1775623841256,-501.50073946,0.00013698,2]
[420026032,1775623841265,-500.0,0.00013698,2]
[420026033,1775623841274,-500.0,0.00013698,2]
[420026034,1775623841284,-500.0,0.00013698,2]
[420026035,1775623841296,-500.0,0.00013698,2]
[420026036,1775623841305,-500.0,0.00013698,2]
[420026037,1775623841315,-500.0,0.00013698,2]
[420026038,1775623841325,-500.0,0.00013698,2]
[420026039,1775623841335,-500.0,0.00013698,2]
[420026040,1775623841344,-500.0,0.00013698,2]
[420026041,1775623841354,-500.0,0.00013698,2]
[420026042,1775623841364,-500.0,0.00013698,2]
[420026043,1775623841374,-500.0,0.00013698,2]
[420026044,1775623841384,-504.74596653,0.00013698,2]
[420026045,1775623841503,-500.0,0.00013698,2]
[420026046,1775623841513,-500.0,0.00013698,2]
[420026047,1775623841523,-500.0,0.00013698,2]
[420026048,1775623841532,-500.0,0.00013698,2]
[420026049,1775623841541,-500.0,0.00013698,2]
[420026050,1775623841551,-500.0,0.00013698,2]
[420026051,1775623841561,-500.0,0.00013698,2]
[420026052,1775623841571,-500.0,0.00013698,2]
[420026053,1775623841581,-500.0,0.00013698,2]
[420026054,1775623841589,-499.6872898,0.00013698,2]
[420026055,1775623841597,-500.0,0.00013698,2]
[420026056,1775623841604,-500.0,0.00013698,2]
[420026057,1775623841613,-500.0,0.00013698,2]
[420026058,1775623841623,-500.0,0.00013698,2]
[420026059,1775623841632,-500.0,0.00013698,2]
[420026060,1775623841642,-500.0,0.00013698,2]
[420026061,1775623841652,-500.0,0.00013698,2]
[420026062,1775623841661,-419.40847116,0.00013698,2]
[420026063,1775623841671,-500.0,0.00013698,2]
[420026064,1775623841680,-500.0,0.00013698,2]
[420026065,1775623841690,-500.45174561,0.00013698,2]
[420026066,1775623841699,-500.0,0.00013698,2]
[420026067,1775623841709,-500.0,0.00013698,2]
[420026068,1775623841720,-500.0,0.00013698,2]
[420026069,1775623841730,-500.0,0.00013698,2]
[420026070,1775623841739,-406.01852309,0.00013698,2]
[420026071,1775623841749,-500.0,0.00013698,2]
[420026072,1775623841758,-500.0,0.00013698,2]
[420026073,1775623841767,-500.0,0.00013698,2]
[420026074,1775623841778,-500.0,0.00013698,2]
[420026075,1775623841787,-500.0,0.00013698,2]
[420026076,1775623841798,-500.0,0.00013698,2]
[420026077,1775623841807,-500.0,0.00013698,2]
[420026078,1775623841817,-500.0,0.00013698,2]
[420026079,1775623841826,-500.0,0.00013698,2]
[420026080,1775623841836,-500.0,0.00013698,2]
[420026081,1775623841846,-500.0,0.00013698,2]
[420026082,1775623841855,-490.0,0.00013698,2]
[420026083,1775623841865,-500.0,0.00013698,2]
[420026084,1775623841875,-500.0,0.00013698,2]
[420026085,1775623841885,-500.0,0.00013698,2]
[420026086,1775623841895,-500.0,0.00013698,2]
[420026087,1775623841904,-500.0,0.00013698,2]
[420026088,1775623841914,-500.0,0.00013698,2]
[420026089,1775623841924,-500.0,0.00013698,2]
[420026090,1775623841934,-500.0,0.00013698,2]
[420026091,1775623841944,-500.0,0.00013698,2]
[420026092,1775623841954,-500.0,0.00013698,2]
[420026093,1775623841964,-500.0,0.00013698,2]
[420026094,1775623841974,-500.0,0.00013698,2]
[420026095,1775623841984,-562.38643831,0.00013698,2]
[420026096,1775623841994,-500.0,0.00013698,2]
[420026097,1775623842005,-500.0,0.00013698,2]
[420026099,1775623842015,-500.0,0.00013698,2]
[420026100,1775623842024,-500.0,0.00013698,2]
[420026101,1775623842034,-500.0,0.00013698,2]
[420026102,1775623842043,-500.0,0.00013698,2]
[420026103,1775623842053,-500.0,0.00013698,2]
[420026104,1775623842063,-500.0,0.00013698,2]
[420026105,1775623842072,-500.0,0.00013698,2]
[420026106,1775623842082,-500.0,0.00013698,2]
[420026107,1775623842092,-500.0,0.00013698,2]
[420026108,1775623842102,-500.0,0.00013698,2]
[420026109,1775623842111,-500.0,0.00013698,2]
[420026110,1775623842120,-500.0,0.00013698,2]
[420026111,1775623842130,-500.0,0.00013698,2]
[420026112,1775623842139,-500.0,0.00013698,2]
[420026113,1775623842148,-500.0,0.00013698,2]
[420026114,1775623842158,-500.0,0.00013698,2]
[420026115,1775623842167,-215.39830433,0.00013698,2]
[420026116,1775623842176,-500.0,0.00013698,2]
[420026117,1775623842185,-500.0,0.00013698,2]
[420026118,1775623842194,-500.0,0.00013698,2]
[420026119,1775623842204,-500.0,0.00013698,2]
[420026120,1775623842214,-500.0,0.00013698,2]
[420026121,1775623842223,-500.0,0.00013698,2]
[420026122,1775623842233,-542.71692042,0.00013698,2]
[420026123,1775623842243,-500.0,0.00013698,2]
[420026124,1775623842252,-500.0,0.00013698,2]
[420026125,1775623842261,-500.0,0.00013698,2]
[420026126,1775623842271,-500.0,0.00013698,2]
[420026127,1775623842281,-500.0,0.00013698,2]
[420026128,1775623842290,-500.0,0.00013698,2]
[420026129,1775623842300,-500.0,0.00013698,2]
[420026130,1775623842309,-500.0,0.00013698,2]
[420026131,1775623842319,-500.0,0.00013698,2]
[420026132,1775623842329,-500.0,0.00013698,2]
[420026133,1775623842339,-500.0,0.00013698,2]
[420026134,1775623842348,-658.1,0.00013698,2]
[420026135,1775623842358,-658.1,0.00013698,2]
[420026136,1775623842368,-658.1,0.00013698,2]
[420026137,1775623842378,-658.1,0.00013698,2]
[420026138,1775623842387,-658.1,0.00013698,2]
[420026139,1775623842397,-658.1,0.00013698,2]
[420026140,1775623842407,-658.1,0.00013698,2]
[420026141,1775623842416,-658.1,0.00013698,2]
[420026142,1775623842426,-658.1,0.00013698,2]
[420026143,1775623842435,-658.1,0.00013698,2]
[420026144,1775623842444,-658.1,0.00013698,2]
[420026145,1775623842455,-658.1,0.00013698,2]
[420026146,1775623842465,-658.1,0.00013698,2]
[420026147,1775623842474,-658.1,0.00013698,2]
[420026148,1775623842484,-658.1,0.00013698,2]
[420026149,1775623842494,-658.1,0.00013698,2]
[420026150,1775623842504,-658.1,0.00013698,2]
[420026151,1775623842514,-658.1,0.00013698,2]
[420026152,1775623842525,-553.39225555,0.00013698,2]
[420026153,1775623842535,-658.1,0.00013698,2]
[420026154,1775623842545,-500.0,0.00013698,2]
[420026155,1775623842555,-633.831471,0.00013698,2]
[420026156,1775623842565,-500.0,0.00013698,2]
[420026157,1775623842575,-500.0,0.00013698,2]
[420026158,1775623842584,-500.0,0.00013698,2]
[420026159,1775623842595,-500.0,0.00013698,2]
[420026160,1775623842604,-500.0,0.00013698,2]
[420026161,1775623842614,-500.0,0.00013698,2]
[420026162,1775623842624,-500.0,0.00013698,2]
[420026163,1775623842634,-500.0,0.00013698,2]
[420026164,1775623842643,-500.0,0.00013698,2]
[420026165,1775623842653,-500.0,0.00013698,2]
[420026166,1775623842663,-198.06604293,0.00013698,2]
[420026167,1775623842673,-500.03954585,0.00013698,2]
[420026168,1775623842683,-500.0,0.00013698,2]
[420026169,1775623842692,-500.0,0.00013698,2]
[420026170,1775623842702,-500.0,0.00013698,2]
[420026171,1775623842712,-500.0,0.00013698,2]
[420026172,1775623842722,-500.0,0.00013698,2]
[420026173,1775623842732,-500.0,0.00013698,2]
[420026174,1775623842742,-500.0,0.00013698,2]
[420026175,1775623842752,-500.0,0.00013698,2]
[420026176,1775623842762,-500.0,0.00013698,2]
[420026177,1775623842772,-500.0,0.00013698,2]
[420026178,1775623842782,-500.0,0.00013698,2]
[420026179,1775623842793,-500.0,0.00013698,2]
[420026180,1775623842802,-500.0,0.00013698,2]
[420026181,1775623842812,-500.13,0.00013698,2]
[420026182,1775623842822,-500.0,0.00013698,2]
[420026183,1775623842831,-500.0,0.00013698,2]
[420026184,1775623842841,-500.0,0.00013698,2]
[420026185,1775623842851,-500.0,0.00013698,2]
[420026186,1775623842860,-500.0,0.00013698,2]
[420026187,1775623842871,-500.0,0.00013698,2]
[420026188,1775623842879,-467.66178343,0.00013698,2]
[420026189,1775623842889,-500.0,0.00013698,2]
[420026190,1775623842899,-500.0,0.00013698,2]
[420026191,1775623842910,-500.0,0.00013698,2]
[420026192,1775623842921,-500.0,0.00013698,2]
[420026193,1775623842931,-500.0,0.00013698,2]
[420026194,1775623842941,-500.0,0.00013698,2]
[420026195,1775623842951,-500.0,0.00013698,2]
[420026196,1775623842961,-500.0,0.00013698,2]
[420026197,1775623842971,-500.0,0.00013698,2]
[420026198,1775623842981,-248.76967055,0.00013698,2]
[420026199,1775623842990,-500.0,0.00013698,2]
[420026200,1775623843000,-500.0,0.00013698,2]
[420026201,1775623843010,-500.0,0.00013698,2]
[420026202,1775623843021,-629.72113567,0.00013698,2]
[420026203,1775623843031,-500.0,0.00013698,2]
[420026204,1775623843041,-500.0,0.00013698,2]
[420026205,1775623843051,-500.0,0.00013698,2]
[420026206,1775623843061,-500.0,0.00013698,2]
[420026207,1775623843071,-500.0,0.00013698,2]
[420026208,1775623843082,-500.0,0.00013698,2]
[420026209,1775623843093,-500.0,0.00013698,2]
[420026210,1775623843103,-500.0,0.00013698,2]
[420026211,1775623843114,-500.0,0.00013698,2]
[420026212,1775623843124,-500.0,0.00013698,2]
[420026213,1775623843134,-500.0,0.00013698,2]
[420026214,1775623843144,-500.0,0.00013698,2]
[420026215,1775623843155,-500.0,0.00013698,2]
[420026216,1775623843165,-500.0,0.00013698,2]
[420026217,1775623843175,-500.0,0.00013698,2]
[420026218,1775623843185,-500.0,0.00013698,2]
[420026219,1775623843196,-500.0,0.00013698,2]
[420026220,1775623843206,-500.0,0.00013698,2]
[420026221,1775623843216,-500.0,0.00013698,2]
[420026222,1775623843227,-500.0,0.00013698,2]
[420026223,1775623843237,-500.14075642,0.00013698,2]
[420026224,1775623843247,-500.0,0.00013698,2]
[420026225,1775623843257,-500.0,0.00013698,2]
[420026226,1775623843267,-500.0,0.00013698,2]
[420026227,1775623843278,-500.0,0.00013698,2]
[420026228,1775623843289,-500.0,0.00013698,2]
[420026229,1775623843299,-500.0,0.00013698,2]
[420026230,1775623843310,-500.0,0.00013698,2]
[420026231,1775623843321,-500.0,0.00013698,2]
[420026232,1775623843332,-500.0,0.00013698,2]
[420026233,1775623843342,-500.0,0.00013698,2]
[420026234,1775623843353,-500.0,0.00013698,2]
[420026235,1775623843363,-500.0,0.00013698,2]
[420026236,1775623843373,-500.0,0.00013698,2]
[420026237,1775623843383,-500.0,0.00013698,2]
[420026238,1775623843394,-500.0,0.00013698,2]
[420026239,1775623843404,-500.0,0.00013698,2]
[420026240,1775623843415,-500.0,0.00013698,2]
[420026241,1775623843425,-500.0,0.00013698,2]
[420026242,1775623843438,-500.0,0.00013698,2]
[420026243,1775623843448,-500.0,0.00013698,2]
[420026244,1775623843460,-595.48595604,0.00013698,2]
[420026245,1775623843471,-150.0,0.00013699,2]
[420026246,1775623843482,-150.0,0.00013699,2]
[420026247,1775623843493,-2138.0,0.00013699,2]
[420026248,1775623843504,-150.0,0.00013699,2]
[420026249,1775623843515,-343.26,0.00013699,2]
[420026250,1775623843525,-418.94,0.00013699,2]
[420026251,1775623843535,-349.12,0.00013699,2]
[420026252,1775623843545,-290.93,0.00013699,2]
[420026254,1775623843555,-242.45,0.00013699,2]
[420026255,1775623843566,-202.04,0.00013699,2]
[420026256,1775623843577,-168.36,0.00013699,2]
[420026257,1775623843588,-841.85,0.00013699,2]
[420026258,1775623843599,-177.67,0.00013699,2]
[420026259,1775623843610,-158.15239998,0.00013699,2]
[420026260,1775623843831,-964.0,0.00013699,2]
[420026261,1775623843841,-964.0,0.00013699,2]
[420026262,1775623843852,-964.0,0.00013699,2]
[420026263,1775623843863,-964.0,0.00013699,2]
[420026264,1775623843873,-964.0,0.00013699,2]
[420026265,1775623843883,-964.0,0.00013699,2]
[420026266,1775623843893,-964.0,0.00013699,2]
[420026267,1775623843904,-964.0,0.00013699,2]
[420026268,1775623843914,-964.0,0.00013699,2]
[420026269,1775623843925,-964.0,0.00013699,2]
[420026270,1775623843935,-964.0,0.00013699,2]
[420026271,1775623843946,-964.0,0.00013699,2]
[420026272,1775623843956,-964.0,0.00013699,2]
[420026273,1775623843967,-964.0,0.00013699,2]
[420026274,1775623843977,-964.0,0.00013699,2]
[420026275,1775623843987,-964.0,0.00013699,2]
[420026276,1775623843997,-964.0,0.00013699,2]
[420026277,1775623844007,-1000.0,0.00013699,2]
[420026278,1775623844017,-964.0,0.00013699,2]
[420026279,1775623844027,-1000.0,0.00013699,15]
[420026280,1775623844037,-964.0,0.00013699,2]
[420026281,1775623844047,-964.0,0.00013699,2]
[420026282,1775623844057,-964.0,0.00013699,2]
[420026283,1775623844066,-964.0,0.00013699,2]
[420026284,1775623844077,-964.0,0.00013699,2]
[420026285,1775623844088,-79364.77,0.000137,2]
[420026286,1775623844098,-4043.17,0.00013718,2]
[420026287,1775623844108,-1501.79789242,0.00013755,2]
[420026288,1775623844119,-284.56,0.00013894,2]
[420026289,1775623844129,-736.0,0.00013958,2]
[420026290,1775623844139,-150.0,0.00013973,2]
[420026291,1775623844150,-150.0,0.00013973,2]
[420026292,1775623844160,-150.0,0.00013973,2]
[420026293,1775623844169,-4733.74989347,0.0001399,2]
[420026294,1775623844179,-280.0,0.00014048,2]
[420026295,1775623844189,-823.0,0.00014048,2]
[420026296,1775623844199,-3292.0,0.00014073,2]
[420026297,1775623844209,-9434.19054767,0.00014074,2]
[420026298,1775623844219,-2500.0,0.00014092,2]
[420026299,1775623844229,-2500.0,0.00014092,2]
[420026300,1775623844239,-23620.10508083,0.00014094,2]
[420026301,1775623844249,-12263.8920681,0.00014145,2]
[420026302,1775623844259,-1235.18214925,0.00014215,2]
[420026303,1775623844269,-181.08010149,0.00014215,2]
[420026304,1775623844279,-578.20924308,0.00014215,2]
[420026305,1775623844289,-200.0,0.00014215,2]
[420026306,1775623844299,-174.61919141,0.00014215,2]
[420026307,1775623844308,-1000.0,0.00014215,2]
[420026308,1775623844318,-1000.0,0.00014215,2]
[420026309,1775623844327,-292.18486671,0.00014215,2]
[420026310,1775623844337,-151.0,0.00014215,2]
[420026311,1775623844346,-743.50770149,0.00014215,2]
[420026312,1775623844356,-170.0,0.00014215,2]
[420026313,1775623844366,-591.41950389,0.00014215,2]
[420026314,1775623844375,-170.0,0.00014215,2]
[420026315,1775623844386,-170.0,0.00014215,2]
[420026316,1775623844395,-170.0,0.00014215,2]
[420026318,1775623844405,-170.0,0.00014215,2]
[420026319,1775623844414,-170.0,0.00014215,2]
[420026321,1775623844424,-170.0,0.00014215,2]
[420026323,1775623844434,-505.73279232,0.00014215,2]
[420026325,1775623844444,-170.0,0.00014215,2]
[420026327,1775623844453,-170.0,0.00014215,2]
[420026329,1775623844462,-170.0,0.00014215,2]
[420026331,1775623844472,-170.0,0.00014215,2]
[420026332,1775623844481,-170.0,0.00014215,2]
[420026333,1775623844491,-170.0,0.00014215,2]
[420026334,1775623844500,-170.0,0.00014215,2]
[420026335,1775623844509,-170.0,0.00014215,2]
[420026336,1775623844519,-150.0,0.00014241,2]
[420026337,1775623844528,-150.0,0.00014247,2]
[420026338,1775623844538,-151.0,0.0001427,2]
[420026339,1775623844547,-150.0,0.00014304,2]
[420026340,1775623844556,-151.0,0.00014325,2]
[420026341,1775623844566,-150.0,0.00014376,2]
[420026342,1775623844575,-151.0,0.0001438,2]
[420026343,1775623844584,-658.1,0.00014383,2]
[420026344,1775623844594,-658.1,0.00014383,2]
[420026345,1775623844604,-658.1,0.00014383,2]
[420026346,1775623844613,-658.1,0.00014383,2]
[420026347,1775623844623,-658.2028036,0.00014383,2]
[420026348,1775623844632,-160.0,0.00014388,2]
[420026349,1775623844642,-337.38,0.00014398,2]
[420026350,1775623844651,-151.0,0.00014435,2]
[420026351,1775623844661,-151.0,0.0001449,2]
[420026352,1775623844670,-284.56,0.00014526,2]
[420026353,1775623844679,-151.0,0.00014545,2]
[420026354,1775623844688,-2812.0,0.00014559,2]
[420026355,1775623844698,-2000.0,0.00014592,2]
[420026356,1775623844709,-151.0,0.000146,2]
[420026358,1775623844719,-1003.75016468,0.0001464,2]
[420026360,1775623844731,-503.61823881,0.0001464,2]
[420026362,1775623844743,-151.0,0.00014655,2]
[420026364,1775623844753,-9434.19054767,0.00014674,2]
[420026367,1775623844763,-215.9951,0.000147,2]
[420026369,1775623844773,-151.0,0.0001471,2]
[420026371,1775623844784,-1280.88388878,0.00014763,2]
[420026373,1775623844794,-187.78006525,0.00014763,2]
[420026375,1775623844804,-200.0,0.00014763,2]
[420026377,1775623844814,-181.08010149,0.00014763,2]
[420026379,1775623844823,-771.01748645,0.00014763,2]
[420026381,1775623844836,-151.0,0.00014765,2]
[420026383,1775623844846,-250.0,0.00014795,2]
[420026385,1775623844855,-23620.10508083,0.00014803,2]
[420026387,1775623844864,-151.0,0.0001482,2]
[420026389,1775623844874,-151.0,0.00014875,2]
[420026391,1775623844883,-155.0,0.00014909,2]
[420026393,1775623844893,-151.0,0.0001493,2]
[420026395,1775623844902,-371.0,0.00014933,2]
[420026397,1775623844911,-151.0,0.00014985,2]
[420026399,1775623844920,-300.0,0.00015,2]
[420026401,1775623844930,-1573.0,0.0001504,2]
[420026403,1775623844940,-351.487473,0.00015041,2]
[420026405,1775623844949,-284.56,0.00015157,2]
[420026406,1775623844961,-171.98,0.00015201,2]
[420026409,1775623844971,-786.02,0.00015232,2]
[420026411,1775623844981,-326.553595,0.00015247,2]
[420026413,1775623844990,-9434.19054767,0.00015273,2]
[420026415,1775623844999,-155.49037491,0.00015298,2]
[420026417,1775623845009,-79364.77,0.000153,2]
[420026419,1775623845018,-1328.27659266,0.00015311,2]
[420026420,1775623845029,-194.72792766,0.00015311,2]
[420026421,1775623845039,-200.0,0.00015311,2]
[420026422,1775623845049,-187.78006525,0.00015311,2]
[420026423,1775623845058,-799.54513345,0.00015311,2]
[420026424,1775623845068,-1252.0,0.00015311,2]
[420026425,1775623845078,-985.91,0.00015355,2]
[420026426,1775623845088,-2812.0,0.0001536,2]
[420026427,1775623845099,-1152.0,0.00015444,2]
[420026428,1775623845109,-593.97477054,0.00015466,2]
[420026429,1775623845119,-2254.94,0.00015471,2]
[420026430,1775623845130,-5024.31,0.00015471,2]
[420026431,1775623845140,-376.07,0.00015471,2]
[420026432,1775623845150,-4609.0,0.0001548,2]
[420026433,1775623845160,-766.01,0.00015506,2]
[420026434,1775623845170,-4000.0,0.00015507,2]
[420026435,1775623845180,-23620.10508083,0.00015512,2]
[420026436,1775623845189,-987.75,0.00015629,2]
[420026437,1775623845204,-22674.00939168,0.000157,2]
[420026438,1775623845215,-504.19295328,0.00015744,2]
[420026439,1775623845225,-284.56,0.00015789,2]
[420026440,1775623845235,-113846.4586908,0.0001584,2]
[420026441,1775623845244,-500.0,0.00015844,2]
[420026442,1775623845254,-500.0,0.00015844,2]
[420026443,1775623845263,-500.0,0.00015844,2]
[420026444,1775623845273,-500.0,0.00015844,2]
[420026445,1775623845283,-500.0,0.00015844,2]
[420026446,1775623845292,-500.0,0.00015844,2]
[420026447,1775623845302,-500.0,0.00015844,2]
[420026448,1775623845311,-500.0,0.00015844,2]
[420026449,1775623845322,-163.86569709,0.00015844,2]
[420026450,1775623845332,-288.28066678,0.00015844,2]
[420026451,1775623845342,-503.98766467,0.00015844,2]
[420026452,1775623845352,-164.42313659,0.00015844,2]
[420026453,1775623845361,-500.0,0.00015844,2]
[420026454,1775623845371,-1377.42282659,0.00015859,2]
[420026455,1775623845380,-319.09041194,0.00015859,2]
[420026456,1775623845390,-200.0,0.00015859,2]
[420026457,1775623845400,-194.72792766,0.00015859,2]
[420026458,1775623845409,-693.14665977,0.00015859,2]
[420026459,1775623845418,-9434.19054767,0.00015873,2]
[420026460,1775623845428,-500.0,0.0001589,2]
[420026461,1775623845439,-500.0,0.0001589,2]
[420026462,1775623845449,-177.05503597,0.0001589,2]
[420026463,1775623845459,-2000.0,0.0001589,2]
[420026464,1775623845470,-4000.0,0.00015895,2]
[420026465,1775623845481,-500.0,0.00015899,2]
[420026466,1775623845490,-500.0,0.00015899,2]
[420026467,1775623845500,-396.480844,0.00015899,2]
[420026468,1775623845509,-184.01842302,0.000159,2]
[420026469,1775623845519,-6703.71173397,0.00015924,2]
[420026470,1775623845528,-1093.56499901,0.00015933,2]